bitfinex-derivatives/quotes_ETHF0:USTF0_20250403
["timestamp","ask_amount","ask_price","bid_price","bid_amount"]
[1743689114881,2.7312,1772.4,1771.9,6.03013]
[1743689115079,2.7312,1772.4,1771.9,2.82232]
[1743689115278,1.12883,1772.1,1771.9,1.12887]
[1743689115477,1.12868,1772.3,1771.9,40.8]
[1743689115682,1.12887,1772.0,1771.9,40.8]
[1743689115884,1.12887,1772.0,1771.9,40.80845428]
[1743689116182,0.44496628,1772.0,1771.9,40.80845428]
[1743689116382,7.28163628,1772.0,1771.9,4.28e-06]
[1743689116582,6.57026341,1772.0,1770.7,5.8981]
[1743689116776,3.2078,1771.4,1770.9,3.2078]
[1743689116981,3.2078,1771.7,1771.1,3.2078]
[1743689117180,3.2078,1771.7,1770.7,2.6903]
[1743689117181,1.12919,1771.5,1771.3,1.12928]
[1743689117388,5.603,1771.9,1771.5,1.12918]
[1743689117389,2.8337,1771.6,1771.5,1.12918]
[1743689117578,0.44496628,1771.6,1771.5,1.12918]
[1743689117776,0.44496628,1771.6,1771.5,4.33698]
[1743689117977,0.44496628,1771.6,1771.2,2.82345]
[1743689118186,2.8337,1771.5,1771.4,1.1292]
[1743689118686,2.8337,1771.5,1770.9,11.3804]
[1743689118889,1.12926,1771.4,1771.3,1.1293]
[1743689119180,8.4607,1771.5,1771.4,1.12925]
[1743689119388,8.4607,1771.5,1771.2,3.2078]
[1743689119689,1.12926,1771.4,1771.3,1.12929]
[1743689119881,2.6736,1771.4,1771.2,3.2078]
[1743689120085,5.627,1771.5,1771.4,1.12925]
[1743689120277,2.6736,1771.6,1771.2,3.2078]
[1743689120483,2.6736,1771.4,1770.7,2.82415]
[1743689120687,2.6736,1771.4,1770.4,62.98975233]
[1743689120688,2.6736,1771.4,1771.2,3.2078]
[1743689120889,3.21625428,1771.7,1771.6,1.12912]
[1743689121085,2.68205428,1771.7,1771.6,1.12912]
[1743689121284,0.00845428,1771.7,1771.6,4.33692]
[1743689121987,0.00845428,1771.7,1771.6,6.83692]
[1743689122185,6.7558,1772.2,1771.7,2.82258]
[1743689122387,1.12887,1772.0,1771.9,1.12893]
[1743689122584,1.12897,1771.9,1771.7,1.129]
[1743689122892,1.12907,1771.7,1771.5,5.6823]
[1743689123093,1.12901,1771.8,1771.5,5.6823]
[1743689123282,2.6655,1771.7,1771.4,6.15825428]
[1743689123487,1.12918,1771.5,1771.4,0.00845428]
[1743689123694,2.6655,1771.7,1771.4,40.80845428]
[1743689123891,2.6655,1771.7,1771.6,1.12912]
[1743689124292,2.6655,1771.7,1771.5,4.07115]
[1743689124491,1.12918,1771.5,1771.4,40.80845428]
[1743689124689,1.12914,1771.6,1771.5,1.12916]
[1743689124885,3.79464,1771.6,1771.4,41.93765428]
[1743689125091,1.12918,1771.5,1771.4,41.93765428]
[1743689125291,3.79468,1771.5,1771.4,40.80845428]
[1743689125999,4.24020936,1771.5,1771.4,40.80845428]
[1743689126492,3.11102936,1771.5,1771.4,41.93770428]
[1743689126790,0.44552936,1771.5,1771.4,44.43770428]
[1743689127398,0.44552936,1771.5,1771.4,41.93770428]
[1743689127694,1.12918,1771.5,1771.4,0.00845428]
[1743689128195,4.06338,1771.5,1771.4,40.80845428]
[1743689128490,5.88137737,1771.5,1770.7,2.82414]
[1743689128690,5.88137737,1771.5,1770.8,2.82409]
[1743689128691,3.2078,1771.3,1770.8,2.82409]
[1743689128893,1.12937,1771.3,1771.2,1.12938]
[1743689129090,3.36517737,1771.3,1771.2,1.12938]
[1743689129292,0.44717737,1771.3,1771.2,1.12938]
[1743689129590,8.40968,1771.7,1771.3,1.12931]
[1743689129591,0.44717737,1771.4,1771.3,1.12931]
[1743689129798,0.44717737,1771.4,1771.3,7.20781]
[1743689129987,0.44717737,1771.4,1771.3,9.70781]
[1743689130187,0.44717737,1771.6,1771.5,1.12918]
[1743689130383,1.57629737,1771.6,1771.5,1.12918]
[1743689130590,1.12931,1771.3,1771.2,40.8]
[1743689130800,6.1258,1771.5,1771.2,40.8]
[1743689130984,7.25503,1771.5,1771.4,1.12925]
[1743689131296,7.25503,1771.5,1771.2,41.92936]
[1743689131297,1.12931,1771.3,1771.2,41.92936]
[1743689131593,1.12931,1771.3,1770.7,5.6482]
[1743689131594,3.2078,1770.6,1769.0,4.07702]
[1743689131785,9.32,1771.1,1769.3,2.775]
[1743689131786,3.2078,1770.1,1769.3,2.775]
[1743689131986,3.2078,1770.3,1770.0,1.13014]
[1743689132189,0.00845428,1769.9,1769.5,2.775]
[1743689132394,0.00845428,1769.9,1769.8,1.13027]
[1743689132698,0.44717737,1770.2,1770.1,1.13008]
[1743689132895,0.44717737,1770.2,1770.1,3.63008]
[1743689133299,3.2078,1770.7,1770.3,1.12993]
[1743689133602,4.33751,1770.7,1770.4,3.90485]
[1743689133794,3.2078,1770.7,1770.4,44.70485]
[1743689134090,3.21625428,1770.7,1770.4,44.70485]
[1743689134295,3.21625428,1770.7,1770.4,40.8]
[1743689134488,4.33762,1770.5,1770.4,40.8]
[1743689135093,3.2078,1770.5,1770.4,40.8]
[1743689135397,4.33762,1770.5,1770.4,40.8]
[1743689135791,3.2078,1770.5,1770.4,40.8]
[1743689136091,3.2078,1770.5,1770.4,41.92989]
[1743689136396,3.21625428,1770.7,1770.4,43.6827]
[1743689136597,3.21625428,1770.7,1770.5,1.12979]
[1743689136787,0.00845428,1770.7,1770.6,2.8827]
[1743689136993,0.00845428,1770.7,1770.6,4.01246]
[1743689137193,3.21625428,1770.7,1770.6,2.8827]
[1743689137495,0.00845428,1770.7,1770.6,4.01246]
[1743689137791,0.00845428,1770.7,1770.6,6.51246]
[1743689139100,0.00845428,1770.7,1770.6,4.01246]
[1743689139797,0.00845428,1770.7,1770.6,6.51246]
[1743689139999,3.2078,1771.1,1771.0,1.1295]
[1743689140194,6.1256,1771.3,1771.1,1.12938]
[1743689140393,7.25496,1771.3,1771.1,1.12938]
[1743689140599,6.1256,1771.3,1771.2,1.12938]
[1743689140801,3.2078,1771.3,1771.2,1.12938]
[1743689141598,2.82345,1771.2,1770.4,44.0078]
[1743689141803,1.12968,1770.8,1770.6,2.7492]
[1743689142003,3.2078,1770.9,1770.4,40.8]
[1743689142004,1.12976,1770.6,1770.4,40.8]
[1743689142209,7.13403,1770.7,1770.5,1.12977]
[1743689142701,1.12976,1770.6,1770.5,1.12977]
[1743689142898,6.0043,1770.7,1770.6,1.12976]
[1743689143103,3.2078,1770.9,1770.7,1.12966]
[1743689143509,1.12963,1770.8,1770.6,1.12971]
[1743689143697,1.12977,1770.6,1770.4,40.8]
[1743689143902,3.2078,1770.7,1770.6,1.12976]
[1743689144197,2.7965,1770.8,1770.7,1.1297]
[1743689144401,3.92616,1770.8,1770.6,1.12971]
[1743689144610,3.2078,1770.7,1770.4,40.8]
[1743689144897,5.9462,1770.7,1770.4,43.6366]
[1743689145106,7.07591,1770.7,1770.4,43.6366]
[1743689145301,7.0759,1770.7,1770.6,1.12976]
[1743689145606,5.9462,1770.7,1770.6,1.12976]
[1743689145807,3.2078,1770.9,1770.8,1.12963]
[1743689146100,6.023,1771.0,1770.9,1.12957]
[1743689146406,0.00845428,1771.4,1771.3,1.12931]
[1743689146911,0.00845428,1771.4,1771.3,3.62931]
[1743689147203,0.00845428,1771.4,1771.3,44.42931]
[1743689148002,0.00845428,1771.4,1771.3,47.63711]
[1743689148303,0.00845428,1771.4,1771.3,44.42931]
[1743689149099,0.00845428,1771.4,1771.3,40.8]
[1743689149301,0.00845428,1771.4,1771.0,5.335]
[1743689149302,1.12946,1771.1,1771.0,1.1295]
[1743689149499,3.2078,1771.2,1771.1,1.12941]
[1743689149699,3.2078,1771.2,1771.1,40.8]
[1743689150005,0.00845428,1771.4,1771.3,1.12931]
[1743689150493,0.00845428,1771.4,1771.3,3.62931]
[1743689150696,3.2078,1772.1,1772.0,1.12887]
[1743689150900,3.2078,1772.4,1772.2,1.12871]
[1743689151102,3.2078,1772.4,1772.3,1.12868]
[1743689151302,2.7706,1772.5,1772.4,1.12857]
[1743689151508,2.7706,1772.5,1772.4,1.12861]
[1743689152210,2.7706,1772.5,1772.4,3.81611]
[1743689152402,0.00845428,1772.6,1772.5,1.12855]
[1743689152904,0.00845428,1772.6,1772.5,41.92855]
[1743689154007,0.00845428,1772.6,1772.5,44.80975]
[1743689154506,0.00845428,1772.6,1772.5,48.01755]
[1743689154807,3.2078,1773.0,1772.9,1.12829]
[1743689156904,2.88505428,1773.1,1773.0,1.12823]
[1743689157209,0.00845428,1773.1,1773.0,1.12823]
[1743689160098,2.78235428,1773.1,1773.0,1.12823]
[1743689160299,3.91056428,1773.1,1772.9,1.12825]
[1743689160502,3.91056428,1773.1,1772.7,1.1284]
[1743689160503,3.2078,1773.0,1772.7,1.1284]
[1743689160705,2.7739,1772.9,1772.8,1.12836]
[1743689160910,0.00845428,1773.1,1773.0,1.12823]
[1743689161607,0.00845428,1773.1,1773.0,4.05993]
[1743689161813,2.7739,1773.5,1773.4,1.12798]
[1743689162112,3.2078,1773.6,1773.0,43.7317]
[1743689162311,3.2078,1774.0,1773.1,3.2078]
[1743689162607,3.2078,1773.8,1773.2,5.5126]
[1743689162809,2.6829,1773.7,1773.6,1.12785]
[1743689163007,2.69135428,1773.7,1773.6,1.12785]
[1743689163412,2.69135428,1773.7,1773.3,0.00845428]
[1743689163614,1.12794,1773.5,1773.3,0.00845428]
[1743689163810,2.6829,1773.4,1773.3,1.13649428]
[1743689164912,3.2078,1773.6,1773.5,1.12791]
[1743689165118,6.0965,1773.6,1773.5,1.12791]
[1743689165314,0.00845428,1773.7,1773.6,1.12785]
[1743689165517,1.13626428,1773.7,1773.4,2.6826]
[1743689165810,2.89715428,1773.7,1773.6,1.12785]
[1743689166024,4.02495428,1773.7,1773.6,1.12785]
[1743689166324,4.02495428,1773.7,1773.5,1.12789]
[1743689166325,2.89715428,1773.7,1773.5,1.12789]
[1743689166509,3.2078,1773.6,1773.5,1.12791]
[1743689166909,0.00845428,1773.7,1773.6,1.12785]
[1743689167313,3.2078,1774.1,1774.0,1.12759]
[1743689167511,6.0965,1774.1,1774.0,1.12759]
[1743689168017,4.33524,1774.3,1774.2,1.12747]
[1743689168218,3.2078,1774.3,1774.2,1.12747]
[1743689168413,3.2078,1774.3,1774.1,0.00845428]
[1743689168710,3.78007,1774.2,1774.1,0.00845428]
[1743689169114,3.78007,1774.2,1774.1,40.80845428]
[1743689169310,6.28007,1774.2,1774.1,0.00845428]
[1743689169515,1.12789,1773.6,1773.3,2.849]
[1743689169723,3.2078,1773.7,1773.6,1.12785]
[1743689170614,1.12773,1773.8,1773.6,1.12785]
[1743689170615,5.9764,1774.1,1773.7,2.81947]
[1743689170819,3.2078,1773.9,1773.8,1.12772]
[1743689171213,3.21316694,1774.4,1773.9,2.81915]
[1743689171408,3.21316694,1774.4,1774.3,1.1274]
[1743689171921,0.00536694,1774.4,1774.3,1.1274]
[1743689172112,0.00536694,1774.4,1773.9,5.811]
[1743689172311,1.12749,1774.2,1774.1,1.12751]
[1743689172517,3.2078,1774.2,1774.1,1.12751]
[1743689172723,4.33527,1774.2,1774.1,1.12751]
[1743689173020,3.2078,1774.2,1774.1,1.12753]
[1743689173326,1.12759,1774.0,1773.9,1.12762]
[1743689173537,1.12776,1773.8,1773.5,0.00845428]
[1743689173816,3.2078,1773.8,1773.7,1.12778]
[1743689174414,3.2078,1773.8,1773.5,40.80845428]
[1743689174615,3.2078,1773.6,1773.5,41.93636428]
[1743689175119,3.2078,1773.6,1773.5,40.80845428]
[1743689175316,4.33565,1773.6,1773.5,0.00845428]
[1743689175521,2.81934,1773.8,1773.7,1.12772]
[1743689175522,3.2078,1773.8,1773.7,1.12772]
[1743689175920,4.33552,1773.8,1773.7,41.92772]
[1743689176124,3.2078,1773.9,1773.8,1.12772]
[1743689176319,3.90747,1774.1,1773.7,40.8]
[1743689176518,3.2078,1774.1,1773.7,40.8]
[1743689176816,2.6448,1774.3,1774.1,1.12752]
[1743689176817,3.2078,1774.3,1774.1,1.12752]
[1743689177328,1.12747,1774.2,1774.1,1.12752]
[1743689177722,3.2078,1774.3,1774.2,1.12747]
[1743689178022,3.2078,1774.3,1773.8,2.7825]
[1743689178212,3.2078,1774.3,1773.8,1.12772]
[1743689178213,3.2078,1773.9,1773.8,1.12772]
[1743689178725,3.2078,1774.1,1773.7,40.8]
[1743689178928,3.2078,1773.9,1773.8,1.12767]
[1743689179424,3.2078,1773.9,1773.8,1.12772]
[1743689179925,3.2078,1774.2,1774.1,1.12747]
[1743689180419,0.00536694,1774.4,1774.3,1.1274]
[1743689180625,1.13270694,1774.4,1774.3,1.1274]
[1743689180813,0.00536694,1774.4,1774.3,1.1274]
[1743689181015,1.12715,1774.7,1774.6,1.12717]
[1743689181216,1.12722,1774.6,1774.5,1.12726]
[1743689181418,3.2078,1774.8,1774.6,1.12721]
[1743689181625,4.3349,1774.8,1774.7,1.12715]
[1743689181823,3.2078,1774.8,1774.7,1.12715]
[1743689182724,3.2078,1774.8,1774.7,3.92965]
[1743689182922,0.00845428,1774.9,1774.8,1.12709]
[1743689183315,3.2078,1775.1,1775.0,1.12696]
[1743689183516,1.12696,1775.0,1774.9,2.8466]
[1743689183826,2.7526,1775.0,1774.8,41.92707]
[1743689184020,2.7526,1775.0,1774.8,40.8]
[1743689184021,4.33482,1774.9,1774.8,40.8]
[1743689184327,4.33482,1774.9,1774.8,41.92709]
[1743689184529,3.2078,1774.9,1774.7,1.12709]
[1743689184829,4.33485,1774.9,1774.8,1.12709]
[1743689185015,3.8796,1775.0,1774.8,40.8]
[1743689185219,3.2078,1775.1,1775.0,1.12696]
[1743689185425,3.2078,1775.1,1774.9,2.8466]
[1743689185626,1.12702,1774.9,1774.8,40.8]
[1743689185928,2.7526,1775.0,1774.9,1.12702]
[1743689186230,3.2078,1775.1,1775.0,1.12696]
[1743689187026,3.2078,1775.1,1774.9,2.8466]
[1743689187328,1.12713,1774.8,1774.6,0.00845428]
[1743689187527,3.2078,1774.9,1774.8,1.12709]
[1743689188029,3.2078,1774.9,1774.8,41.92709]
[1743689188231,2.6067,1775.0,1774.9,1.12702]
[1743689188425,3.2078,1775.3,1775.2,1.1268]
[1743689189118,5.8145,1775.3,1774.8,40.8]
[1743689189325,4.33472,1775.1,1774.8,40.8]
[1743689189621,2.7765,1775.0,1774.9,1.12702]
[1743689189821,2.7765,1775.0,1774.9,3.72872]
[1743689190125,4.3347,1775.1,1775.0,1.12696]
[1743689190126,3.2078,1775.1,1775.0,1.12696]
[1743689190326,3.2078,1775.1,1775.0,3.72866]
[1743689190627,3.2078,1775.5,1775.2,1.12683]
[1743689190818,2.7765,1775.6,1775.5,1.12664]
[1743689191124,4.33419,1775.9,1775.8,1.12645]
[1743689191322,3.2078,1775.9,1775.8,1.12645]
[1743689191625,1.12626,1776.1,1776.0,1.12626]
[1743689191924,1.12629,1776.1,1775.9,1.12634]
[1743689192128,4.33401,1776.2,1775.8,43.4017]
[1743689192336,3.2078,1776.2,1776.1,1.12626]
[1743689192523,4.33384,1776.5,1775.9,5.41763]
[1743689192723,1.1263,1776.1,1775.9,2.6017]
[1743689193024,1.12632,1776.0,1775.9,2.6017]
[1743689193220,1.12639,1775.9,1775.8,40.8]
[1743689193422,4.33419,1775.9,1775.8,40.8]
[1743689193631,3.2078,1775.9,1775.8,41.92645]
[1743689193931,3.2078,1775.9,1775.7,2.8223]
[1743689193932,3.2078,1775.9,1775.6,3.72254]
[1743689194125,2.7828,1775.8,1775.4,2.91695428]
[1743689194331,3.2078,1775.7,1775.4,5.51295428]
[1743689194527,4.33444,1775.5,1775.4,0.00845428]
[1743689194728,3.2078,1775.5,1775.4,1.13515428]
[1743689195128,2.7828,1775.6,1775.5,1.12664]
[1743689195424,1.12635,1776.0,1775.9,1.12639]
[1743689195624,1.12651,1775.7,1775.6,2.8518]
[1743689196125,3.2078,1775.8,1775.7,1.12651]
[1743689196327,4.33425,1775.8,1775.7,1.12651]
[1743689196528,3.2078,1775.8,1775.7,1.12651]
[1743689196929,3.2078,1775.8,1775.6,2.8518]
[1743689197229,1.12664,1775.5,1775.4,0.00845428]
[1743689197435,4.33444,1775.5,1775.4,0.00845428]
[1743689197627,3.2078,1775.5,1775.4,0.00845428]
[1743689197827,3.2078,1775.8,1775.7,1.12651]
[1743689198236,1.12621,1776.2,1775.8,2.8161]
[1743689198537,1.12621,1776.2,1776.1,1.12623]
[1743689198834,1.12626,1776.1,1775.9,8.3268]
[1743689199023,1.12632,1776.0,1775.9,9.45314]
[1743689199227,1.12632,1776.0,1775.9,50.25314]
[1743689199428,1.12632,1776.0,1775.9,40.8]
[1743689199628,1.12648,1775.8,1775.7,1.12648]
[1743689199833,4.3342,1775.9,1775.8,1.12645]
[1743689200143,3.2078,1775.9,1775.7,1.12646]
[1743689200332,2.608,1775.8,1775.7,1.12651]
[1743689200735,1.12645,1775.8,1775.7,1.12651]
[1743689201034,4.33411,1776.1,1775.9,1.12634]
[1743689201235,3.2078,1776.1,1776.0,1.12632]
[1743689201424,4.33406,1776.1,1776.0,1.12632]
[1743689201630,3.2078,1776.1,1775.8,2.6689]
[1743689201832,3.2078,1776.1,1776.0,1.12632]
[1743689202033,1.12632,1776.0,1775.9,3.92383]
[1743689202333,3.2078,1776.1,1776.0,1.12632]
[1743689202536,4.33406,1776.1,1776.0,3.92382]
[1743689202738,3.2078,1776.1,1776.0,3.92382]
[1743689202941,3.2078,1776.1,1775.7,2.81622]
[1743689203234,5.8861,1776.1,1775.9,1.12635]
[1743689203434,8.70181,1776.1,1775.5,5.528]
[1743689203635,1.12641,1775.9,1775.7,3.92397]
[1743689203836,4.33425,1775.8,1775.7,2.7975]
[1743689204040,3.2078,1775.8,1775.7,3.92401]
[1743689204639,1.12634,1776.0,1775.7,2.7975]
[1743689204840,3.039,1776.0,1775.9,1.12639]
[1743689205032,3.2078,1776.1,1776.0,1.12632]
[1743689205938,3.039,1776.3,1776.0,6.66392]
[1743689206144,3.2078,1776.4,1776.3,1.12613]
[1743689207445,7.37268,1776.7,1776.6,1.12594]
[1743689207643,1.12598,1776.6,1776.5,1.12601]
[1743689207944,3.048,1776.6,1776.5,1.12601]
[1743689208137,3.2078,1776.7,1776.6,1.12594]
[1743689208335,4.33368,1776.7,1776.6,1.12594]
[1743689208635,3.2078,1776.7,1776.6,41.92594]
[1743689208830,4.33368,1776.7,1776.6,40.8]
[1743689209035,1.12601,1776.5,1776.4,0.00845428]
[1743689209241,4.33381,1776.5,1776.4,0.00845428]
[1743689209446,1.12601,1776.5,1776.4,0.00845428]
[1743689209738,6.2558,1776.7,1776.6,1.12594]
[1743689210243,6.2558,1776.7,1776.6,40.8]
[1743689210438,7.38168,1776.7,1776.6,40.8]
[1743689210641,1.12601,1776.5,1776.4,0.00845428]
[1743689210938,4.33381,1776.5,1776.4,1.13452428]
[1743689211445,3.2078,1776.5,1776.4,1.13452428]
[1743689212442,7.26721,1776.5,1776.4,1.13452428]
[1743689212631,6.1412,1776.5,1776.4,1.13452428]
[1743689213035,7.26721,1776.5,1776.4,1.13452428]
[1743689213342,6.1412,1776.5,1776.4,1.13452428]
[1743689213840,7.26721,1776.5,1776.4,41.93452428]
[1743689214340,7.26721,1776.5,1776.4,0.00845428]
[1743689214641,9.76721,1776.5,1776.4,0.00845428]
[1743689214842,7.26721,1776.5,1776.4,40.80845428]
[1743689215840,15.17121,1776.5,1776.4,4.28e-06]
[1743689216042,15.17121,1776.5,1774.9,3.771]
[1743689216043,1.12672,1775.4,1775.3,1.12675]
[1743689216242,4.3345,1775.4,1775.3,40.8]
[1743689216933,6.2318,1775.6,1775.3,40.8]
[1743689217242,0.00845428,1775.5,1775.4,1.1267]
[1743689217444,0.00845428,1775.5,1775.4,4.1579]
[1743689217445,3.21625428,1775.5,1775.4,4.1579]
[1743689218439,4.34289428,1775.5,1775.4,4.1579]
[1743689219138,3.21625428,1775.5,1775.3,40.8]
[1743689219344,4.1619,1775.4,1775.3,40.8]
[1743689220342,2.81709,1775.2,1774.7,2.7864]
[1743689220545,1.12709,1774.8,1774.7,6.90001]
[1743689220847,3.2078,1774.9,1774.8,1.12709]
[1743689221048,1.12709,1774.8,1774.7,46.5729]
[1743689221343,4.15639,1774.8,1774.7,46.5729]
[1743689221646,2.81804,1774.6,1773.7,6.02718]
[1743689221946,2.81804,1774.6,1774.1,2.9865]
[1743689221947,1.12746,1774.3,1774.1,2.9865]
[1743689222147,1.1274,1774.3,1774.1,4.11399]
[1743689222342,1.1274,1774.3,1774.1,4.11401]
[1743689222546,1.1274,1774.3,1774.2,2.9865]
[1743689222943,0.00845428,1774.4,1774.2,2.9865]
[1743689223141,1.12753,1774.1,1774.0,0.00845428]
[1743689223644,3.62753,1774.1,1774.0,4.28e-06]
[1743689223841,2.8192,1773.9,1773.3,2.8645]
[1743689224043,3.2078,1773.6,1773.3,2.8645]
[1743689224249,1.12798,1773.4,1773.3,2.8645]
[1743689224747,1.12798,1773.4,1773.3,43.6645]
[1743689225846,4.33578,1773.4,1773.3,43.6645]
[1743689226055,4.33578,1773.4,1773.3,40.8]
[1743689226439,1.12804,1773.3,1773.2,0.00845428]
[1743689226649,4.00484,1773.3,1773.2,0.00845428]
[1743689226851,6.50484,1773.3,1773.2,0.00845428]
[1743689228444,4.00484,1773.3,1773.2,0.00845428]
[1743689229155,6.50484,1773.3,1773.2,40.80845428]
[1743689229844,4.00484,1773.3,1773.2,40.80845428]
[1743689230448,3.21625428,1773.4,1773.2,40.80845428]
[1743689230649,1.12804,1773.3,1773.2,40.80845428]
[1743689230953,3.98524,1773.3,1773.2,40.80845428]
[1743689231153,3.98524,1773.3,1773.2,41.93655428]
[1743689231354,3.98524,1773.3,1773.2,40.80845428]
[1743689233569,6.48524,1773.3,1773.2,40.80845428]
[1743689233753,6.48524,1773.3,1772.7,2.8275]
[1743689233754,2.82034,1773.2,1772.7,2.8275]
[1743689233960,6.259,1773.1,1772.7,2.8275]
[1743689234254,1.12825,1773.0,1772.8,1.12834]
[1743689234549,6.259,1773.1,1772.6,2.926]
[1743689234754,1.12829,1772.9,1772.8,1.12832]
[1743689234955,1.12829,1772.9,1772.7,43.6275]
[1743689234956,1.12836,1772.8,1772.7,44.76433428]
[1743689235150,9.07943,1773.1,1772.7,43.63595428]
[1743689235352,4.33614,1772.9,1772.8,1.12836]
[1743689235550,3.2078,1772.9,1772.8,1.12836]
[1743689235758,3.2078,1773.1,1773.0,1.12817]
[1743689236453,0.00845428,1773.4,1773.0,2.82058]
[1743689236655,5.63705,1774.3,1773.0,2.82058]
[1743689236656,3.2078,1773.7,1773.6,1.12785]
[1743689236861,6.02729,1773.7,1773.1,5.6258]
[1743689237158,1.12793,1773.5,1773.4,1.12798]
[1743689237460,3.2078,1773.5,1773.3,1.12801]
[1743689237758,3.2078,1773.5,1773.2,43.6579]
[1743689237759,1.12804,1773.3,1773.2,46.5076]
[1743689237957,4.33584,1773.3,1773.2,40.8]
[1743689238156,2.82033,1773.2,1772.9,1.12828]
[1743689238453,1.12829,1772.9,1772.8,2.8497]
[1743689239049,1.12836,1772.8,1772.7,0.00845428]
[1743689239252,4.33616,1772.8,1772.7,0.00845428]
[1743689239648,6.83616,1772.8,1772.7,40.80845428]
[1743689240050,6.83616,1772.8,1772.7,0.00845428]
[1743689240357,9.54816,1772.8,1772.7,0.00845428]
[1743689240654,4.33616,1772.8,1772.7,0.00845428]
[1743689241165,6.83616,1772.8,1772.7,0.00845428]
[1743689241361,6.83616,1772.8,1772.7,4.28e-06]
[1743689241362,9.78876,1772.8,1772.7,4.28e-06]
[1743689241658,3.2078,1772.6,1771.3,2.82323]
[1743689241860,3.2078,1771.9,1771.8,1.12899]
[1743689242053,3.2078,1771.9,1771.7,3.85152]
[1743689242054,4.33676,1771.9,1771.7,3.85152]
[1743689242251,3.2078,1771.9,1771.7,2.7225]
[1743689242451,3.2078,1771.9,1771.5,1.12914]
[1743689242757,1.12908,1771.7,1771.6,1.13757428]
[1743689242952,1.12908,1771.7,1771.6,0.00845428]
[1743689243147,4.08168,1771.7,1771.6,0.00845428]
[1743689243352,9.37168,1771.7,1771.6,0.00845428]
[1743689243553,11.87168,1771.7,1771.6,0.00845428]
[1743689243752,12.32993572,1771.7,1771.6,40.80845428]
[1743689243958,11.87168,1771.7,1771.6,40.80845428]
[1743689244357,11.87168,1771.7,1771.6,0.00845428]
[1743689244862,12.31839055,1771.7,1771.6,0.00845428]
[1743689245161,12.31839055,1771.7,1771.6,4.28e-06]
[1743689245851,1.1295,1771.0,1770.9,40.8]
[1743689246047,6.4135,1771.0,1770.9,40.91293692]
[1743689246247,8.9135,1771.0,1770.9,6.92e-06]
[1743689246451,11.7489,1771.0,1770.9,6.92e-06]
[1743689247157,3.9649,1771.0,1770.9,6.92e-06]
[1743689247360,1.1295,1771.0,1770.9,6.92e-06]
[1743689247763,4.1061,1771.0,1770.9,6.92e-06]
[1743689248162,1.1295,1771.0,1770.9,6.92e-06]
[1743689248361,1.1295,1771.0,1770.9,2.93910692]
[1743689249159,3.2078,1771.1,1770.9,2.93910692]
[1743689249361,4.33713,1771.3,1771.1,1.12939]
[1743689249562,3.2078,1771.5,1771.2,3.05201779]
[1743689249758,3.2078,1771.5,1771.3,0.11291142]
[1743689250266,4.10585,1771.4,1771.3,0.11291142]
[1743689250461,1.12931,1771.3,1771.2,1.12933]
[1743689250657,1.12931,1771.3,1771.1,1.12939]
[1743689250859,2.9766,1771.4,1771.2,2.7593]
[1743689251153,3.2078,1771.8,1771.7,1.129]
[1743689251360,0.00845428,1772.0,1771.5,2.7593]
[1743689251754,0.00845428,1772.0,1771.9,1.12893]
[1743689252162,0.00845428,1772.0,1771.9,3.62893]
[1743689252457,6.1288,1772.6,1772.2,1.12869]
[1743689252654,3.2078,1772.4,1772.0,2.7345]
[1743689252854,1.12893,1771.9,1771.8,0.00563616]
[1743689253154,4.33673,1771.9,1771.8,0.00563616]
[1743689253357,1.12925,1771.4,1771.1,5.9423]
[1743689253557,0.00845428,1772.0,1771.9,1.12893]
[1743689253865,1.13732428,1772.0,1771.9,40.8]
[1743689254165,0.00845428,1772.0,1771.9,44.82703]
[1743689254670,3.2078,1772.4,1771.9,47.32703]
[1743689254967,4.33646,1772.4,1772.2,1.12869]
[1743689255158,4.33646,1772.4,1772.3,2.8981]
[1743689256360,1.13701428,1772.5,1772.3,2.8981]
[1743689256556,0.00845428,1772.5,1772.4,1.12861]
[1743689256763,3.2078,1773.0,1772.8,1.12836]
[1743689256964,1.12848,1772.6,1772.5,2.8754]
[1743689257261,1.12868,1772.3,1772.2,3.96792]
[1743689257570,6.02887,1772.7,1772.2,2.8392]
[1743689257765,1.12868,1772.3,1772.2,2.8392]
[1743689258069,4.33648,1772.3,1772.2,2.8392]
[1743689258269,3.2078,1772.3,1772.2,2.8392]
[1743689258462,0.00845428,1772.6,1772.4,1.12859]
[1743689258662,4.34473428,1772.6,1772.5,2.9357]
[1743689258863,8.62075428,1772.6,1772.1,0.00845428]
[1743689259063,1.12874,1772.2,1772.1,0.00845428]
[1743689259368,6.42074,1772.2,1772.1,0.00845428]
[1743689259668,2.82201,1772.1,1771.4,5.6334]
[1743689259861,1.12912,1771.6,1771.5,2.8838]
[1743689260057,1.12937,1771.3,1770.9,5.288]
[1743689260265,2.8982,1771.5,1771.0,2.8838]
[1743689260466,1.12942,1771.2,1771.0,2.8838]
[1743689260661,1.12944,1771.1,1771.0,2.8838]
[1743689261358,1.12939,1771.2,1771.0,2.8838]
[1743689261563,0.00845428,1771.3,1771.2,1.12938]
[1743689261763,0.00845428,1771.3,1771.0,5.3838]
[1743689261969,0.00845428,1771.3,1771.2,1.12938]
[1743689262270,0.00845428,1771.3,1771.2,2.5]
[1743689262466,0.00845428,1771.3,1771.2,6.51318]
[1743689262674,1.12915,1771.6,1771.4,1.12919]
[1743689262874,3.2078,1771.6,1771.5,2.7455]
[1743689263074,4.33692,1771.6,1771.5,2.7455]
[1743689263371,3.2078,1772.1,1771.7,1.12901]
[1743689263586,6.0102,1772.1,1771.8,2.7455]
[1743689263876,1.12893,1771.9,1771.8,2.7455]
[1743689264068,3.21625428,1772.1,1771.8,2.7455]